bitfinex/quotes_ETHUSD_20250611
["timestamp","ask_amount","ask_price","bid_price","bid_amount"]
[1749626183851,0.7292,2794.7,2794.6,0.3334513]
[1749626184049,2.20312,2794.7,2794.6,1.3114513]
[1749626184416,2.20312,2794.7,2794.6,0.9817772]
[1749626184755,2.20312,2794.7,2794.6,0.0037772]
[1749626185051,0.55,2794.3,2794.2,0.978]
[1749626185251,1.5365,2794.2,2794.1,0.978]
[1749626185415,0.55,2793.9,2793.1,14.43576015]
[1749626185712,0.55,2793.6,2793.2,1.30818352]
[1749626185914,0.1792,2793.4,2793.3,0.33018352]
[1749626186113,0.55,2794.4,2793.4,0.2379]
[1749626186318,13.15492934,2794.5,2793.6,11.40826061]
[1749626186319,0.1792,2794.0,2793.6,11.40826061]
[1749626186545,0.1792,2794.3,2793.7,1.73845987]
[1749626186711,9.45092934,2794.4,2793.7,1.1572]
[1749626186712,0.1792,2794.1,2793.7,1.1572]
[1749626187219,3.704,2794.5,2794.0,0.1792]
[1749626187220,0.1792,2794.5,2794.0,0.1792]
[1749626187439,0.1792,2794.5,2794.1,0.33011463]
[1749626187640,0.1792,2794.5,2794.2,0.33011463]
[1749626187812,0.1792,2794.5,2794.0,0.1792]
[1749626187813,0.1792,2794.5,2794.3,0.38881463]
[1749626188017,1.0786,2795.3,2794.4,0.33011463]
[1749626188216,0.1792,2794.8,2794.5,0.978]
[1749626188655,0.1792,2794.8,2794.6,0.32984408]
[1749626188851,0.1792,2794.8,2794.7,0.32985493]
[1749626189018,0.1792,2794.8,2794.7,0.32984264]
[1749626189420,1.7736,2794.8,2794.7,0.32973172]
[1749626189724,2.89605293,2794.8,2794.7,1.0032083]
[1749626189930,2.89605293,2794.8,2794.7,1.3329437]
[1749626190258,2.89605293,2794.8,2794.7,1.0032083]
[1749626190618,2.89605293,2794.8,2794.7,1.33296861]
[1749626190947,2.89605293,2794.8,2794.7,1.33295546]
[1749626191353,2.89605293,2794.8,2794.7,1.33294883]
[1749626191517,2.89605293,2794.8,2794.7,1.0032083]
[1749626191717,2.89605293,2794.8,2794.7,1.33292362]
[1749626191913,2.89605293,2794.8,2794.7,1.0032083]
[1749626192114,7.59605293,2794.8,2794.7,1.33292535]
[1749626192353,7.59605293,2794.8,2794.7,1.33293003]
[1749626192542,6.55165293,2794.8,2794.7,1.0032083]
[1749626192739,5.4292,2794.8,2794.7,1.0032083]
[1749626193760,5.4292,2794.8,2794.7,0.0252083]
[1749626193956,5.4292,2794.8,2794.7,1.0032083]
[1749626194729,6.5126,2794.8,2794.7,0.0252083]
[1749626194926,8.47975293,2794.8,2794.7,1.0032083]
[1749626195261,8.47975293,2794.8,2794.7,0.978]
[1749626195460,0.55,2794.5,2793.6,9.264]
[1749626195630,13.27592229,2794.4,2793.7,0.978]
[1749626195831,0.1792,2793.9,2793.7,0.978]
[1749626196445,4.37499295,2793.8,2793.7,0.978]
[1749626196758,0.55,2793.6,2793.3,0.978]
[1749626196924,4.272,2793.5,2793.4,0.978]
[1749626197532,5.2737,2793.5,2793.4,0.978]
[1749626197768,5.98027,2793.5,2793.4,0.978]
[1749626198126,15.43119934,2793.5,2793.4,0.978]
[1749626198323,2.25827,2793.5,2793.4,0.978]
[1749626198526,0.7292,2793.5,2793.4,0.978]
[1749626199572,0.1792,2793.5,2793.4,0.978]
[1749626200058,0.1792,2793.6,2793.4,0.978]
[1749626201442,0.1792,2793.8,2793.4,1.1572]
[1749626202267,10.00092934,2793.6,2793.5,0.978]
[1749626202567,0.7292,2793.6,2793.5,0.978]
[1749626202862,3.82499295,2794.0,2793.5,0.978]
[1749626203029,0.1792,2793.8,2793.5,0.978]
[1749626203632,0.1792,2793.8,2793.6,0.32950579]
[1749626203830,4.00419295,2793.8,2793.7,0.32950579]
[1749626204065,4.00419295,2793.8,2793.7,0.989]
[1749626204066,4.77541225,2793.8,2793.7,0.989]
[1749626204267,5.99871225,2793.8,2793.7,0.989]
[1749626204565,5.99871225,2793.8,2793.7,1.31861678]
[1749626204730,5.99871225,2793.8,2793.7,0.989]
[1749626205242,5.99871225,2793.8,2793.7,1.31859655]
[1749626205833,5.99871225,2793.8,2793.7,0.989]
[1749626206033,5.99871225,2793.8,2793.7,1.31861461]
[1749626206234,5.99871225,2793.8,2793.7,0.989]
[1749626206771,5.99871225,2793.8,2793.7,1.31853236]
[1749626207131,5.44871225,2793.8,2793.7,1.31853236]
[1749626207351,5.44871225,2793.8,2793.7,1.31858326]
[1749626207574,5.44871225,2793.8,2793.7,0.989]
[1749626208062,5.99871225,2793.8,2793.7,0.989]
[1749626208264,0.55,2793.7,2792.6,0.0516]
[1749626208456,9.45092934,2793.3,2792.7,0.989]
[1749626208770,0.1792,2793.0,2792.8,0.32978146]
[1749626208963,0.1792,2793.0,2792.7,0.989]
[1749626210166,0.1792,2793.0,2792.8,0.32973714]
[1749626210365,0.1792,2793.0,2792.9,0.32973714]
[1749626210567,9.45092934,2793.0,2792.9,0.32973714]
[1749626210786,10.48288683,2793.0,2792.5,0.66666667]
[1749626210946,10.48288683,2793.0,2792.9,0.989]
[1749626210947,9.45092934,2793.0,2792.9,0.989]
[1749626211149,3.82499295,2793.2,2792.9,0.989]
[1749626211346,0.1792,2793.0,2792.9,0.989]
[1749626211843,3.82499295,2793.2,2792.9,1.31848854]
[1749626212049,0.1792,2793.1,2793.0,0.32948854]
[1749626212288,0.1792,2793.1,2793.0,0.32943886]
[1749626212468,0.1792,2793.1,2793.0,0.32929685]
[1749626212672,0.1792,2793.1,2792.9,0.989]
[1749626212869,0.1792,2793.1,2793.0,0.989]
[1749626213059,0.1792,2793.1,2793.0,1.31846804]
[1749626213261,0.1792,2793.1,2793.0,0.989]
[1749626213467,0.1792,2793.1,2793.0,1.31838085]
[1749626213878,1.52471223,2793.1,2793.0,1.31838085]
[1749626214076,1.52471223,2793.1,2793.0,0.989]
[1749626214788,1.52471223,2793.1,2793.0,1.3184802]
[1749626214950,0.1792,2793.1,2793.0,0.989]
[1749626215155,0.1792,2793.1,2793.0,1.31844893]
[1749626215554,0.1792,2793.1,2793.0,0.989]
[1749626215770,4.00419295,2793.1,2793.0,1.31836316]
[1749626215970,4.00419295,2793.1,2793.0,0.989]
[1749626215971,4.96720588,2793.1,2793.0,0.989]
[1749626216223,4.00419295,2793.1,2793.0,0.989]
[1749626216387,4.00419295,2793.1,2792.3,2.81365464]
[1749626216591,4.00419295,2793.1,2792.4,1.1682]
[1749626216592,0.1792,2792.8,2792.4,1.1682]
[1749626216895,0.1792,2792.8,2792.5,1.31831961]
[1749626217071,0.1792,2792.8,2792.6,0.32931961]
[1749626217271,0.1792,2792.8,2792.7,0.32931817]
[1749626217668,0.1792,2792.8,2792.5,0.989]
[1749626218100,0.1792,2792.8,2792.6,0.3293154]
[1749626218309,0.1792,2792.8,2792.7,0.32931518]
[1749626218513,3.82499295,2793.1,2792.7,0.32931518]
[1749626218514,3.82499295,2793.1,2792.7,0.3292877]
[1749626218724,3.82499295,2793.1,2792.8,0.3292877]
[1749626218873,3.82499295,2793.1,2792.9,0.3292877]
[1749626219222,3.82499295,2793.1,2793.0,0.32912969]
[1749626219424,3.82499295,2793.1,2792.7,0.1792]
[1749626220006,3.82499295,2793.1,2793.0,0.1792]
[1749626220518,3.82499295,2793.1,2793.0,0.50845393]
[1749626220718,3.82499295,2793.1,2793.0,0.1792]
[1749626220926,3.82499295,2793.1,2793.0,0.50844036]
[1749626221109,3.82499295,2793.1,2793.0,0.5083937]
[1749626221426,3.82499295,2793.1,2793.0,0.1792]
[1749626221777,3.82499295,2793.4,2793.0,0.50866995]
[1749626221978,3.82499295,2793.4,2793.1,0.32946995]
[1749626222289,3.82499295,2793.4,2793.2,0.32946995]
[1749626222476,3.82499295,2793.4,2793.3,0.989]
[1749626222677,0.1792,2793.1,2792.7,0.1792]
[1749626222885,9.63012934,2793.1,2792.8,1.31877435]
[1749626223173,9.45092934,2793.1,2792.8,0.989]
[1749626223520,0.54844698,2793.0,2792.9,0.32979337]
[1749626223677,0.1792,2793.0,2792.9,0.32981772]
[1749626224020,0.1792,2793.0,2792.9,1.31880481]
[1749626224312,4.22541225,2793.4,2792.9,0.989]
[1749626224313,3.82499295,2793.4,2792.9,0.989]
[1749626224493,0.1792,2793.1,2792.9,0.989]
[1749626224690,3.82499295,2793.4,2792.9,0.989]
[1749626224901,0.1792,2793.3,2793.0,0.33036375]
[1749626225219,0.1792,2793.3,2793.1,0.33036835]
[1749626225519,0.1792,2793.3,2793.2,0.33036835]
[1749626225678,0.1792,2793.3,2793.2,0.33044401]
[1749626225892,4.00419295,2793.4,2793.2,0.33040254]
[1749626226087,4.00419295,2793.4,2792.9,1.1682]
[1749626226623,4.00419295,2793.4,2793.0,0.33034571]
[1749626226796,4.00419295,2793.4,2793.1,0.33034594]
[1749626227013,4.00419295,2793.4,2793.2,0.33034594]
[1749626227211,4.00419295,2793.4,2793.3,0.33030769]
[1749626227537,4.00419295,2793.4,2793.3,0.3302408]
[1749626227730,4.00419295,2793.4,2792.9,0.1792]
[1749626227927,1.0862,2793.3,2792.7,2.11000359]
[1749626228220,1.0862,2793.3,2792.4,10.0]
[1749626228221,0.1792,2793.0,2792.8,1.31925645]
[1749626228420,0.1792,2793.0,2792.9,0.33025645]
[1749626228810,0.1792,2793.0,2792.8,0.989]
[1749626229312,1.0862,2793.3,2792.8,0.989]
[1749626229524,0.1792,2793.1,2792.8,0.989]
[1749626229993,0.1792,2793.1,2792.9,0.33045967]
[1749626230325,0.1792,2793.1,2793.0,1.31945967]
[1749626230838,0.1792,2793.1,2793.0,1.31957951]
[1749626231040,0.1792,2793.1,2793.0,0.989]
[1749626231240,0.1792,2793.1,2793.0,1.31957714]
[1749626231446,0.1792,2793.1,2793.0,0.989]
[1749626231610,0.1792,2793.1,2793.0,1.31957858]
[1749626231811,0.1792,2793.1,2793.0,0.989]
[1749626232012,0.1792,2793.1,2793.0,1.31958654]
[1749626232533,0.1792,2793.1,2793.0,0.989]
[1749626232730,13.27592229,2793.4,2793.0,0.989]
[1749626232731,3.82499295,2793.4,2793.0,0.989]
[1749626232934,0.1792,2793.2,2793.1,0.33059825]
[1749626233135,0.1792,2793.2,2793.1,0.33063161]
[1749626233308,0.1792,2793.2,2793.1,0.33062493]
[1749626233641,4.00419295,2793.2,2793.1,0.33062493]
[1749626233940,4.00419295,2793.2,2793.1,0.35966547]
[1749626234143,4.00419295,2793.2,2793.1,0.0289855]
[1749626234742,4.00419295,2793.2,2793.1,0.992]
[1749626235250,4.00419295,2793.2,2793.1,1.32266849]
[1749626235826,4.00419295,2793.2,2793.1,1.32279129]
[1749626236022,4.00419295,2793.2,2793.1,1.3228044]
[1749626236227,4.00419295,2793.2,2793.1,0.992]
[1749626236426,3.82499295,2793.2,2793.1,0.992]
[1749626236629,3.82499295,2793.5,2793.1,0.992]
[1749626236963,3.82499295,2793.5,2793.2,0.33070939]
[1749626237131,3.82499295,2793.5,2793.3,0.33070939]
[1749626237325,3.82499295,2793.5,2793.4,0.33070939]
[1749626237651,3.82499295,2793.5,2793.4,0.33063362]
[1749626237810,3.82499295,2793.5,2793.0,2.11000359]
[1749626238018,4.00419295,2793.5,2793.1,1.1712]
[1749626238371,4.00419295,2793.5,2793.2,1.32271925]
[1749626238560,5.27159518,2793.5,2793.3,0.3307208]
[1749626238873,0.1792,2793.3,2793.2,0.992]
[1749626239045,0.1792,2793.3,2793.2,1.32273378]
[1749626239248,0.1792,2793.3,2793.2,1.32272751]
[1749626239442,0.1792,2793.3,2793.2,0.992]
[1749626240366,0.1792,2793.3,2793.2,1.32265664]
[1749626240757,0.1792,2793.3,2793.2,0.33065725]
[1749626240930,0.1792,2793.3,2793.2,0.992]
[1749626244138,0.1792,2793.3,2792.8,2.11000359]
[1749626244139,10.03054864,2793.3,2792.8,2.11000359]
[1749626244339,10.03054864,2793.3,2792.9,0.992]
[1749626244340,0.1792,2793.0,2792.9,0.992]
[1749626246186,0.55,2792.9,2792.4,2.11000359]
[1749626246402,0.55,2792.9,2792.1,9.264]
[1749626246403,1.55626223,2792.8,2792.5,0.992]
[1749626246780,11.00842934,2792.7,2792.6,0.992]
[1749626247098,11.18762934,2792.7,2792.6,0.992]
[1749626247292,12.8343185,2792.7,2792.6,0.992]
[1749626248194,12.8343185,2792.7,2792.2,10.0]
[1749626248367,12.6551185,2792.7,2792.6,0.992]
[1749626248575,12.6551185,2792.7,2792.1,9.264]
[1749626248576,0.1792,2792.3,2792.1,9.264]
[1749626248882,9.63012934,2792.3,2792.2,0.992]
[1749626249211,10.63762934,2792.3,2792.2,0.992]
[1749626249396,11.97284227,2792.3,2792.2,0.992]
[1749626249571,2.52191293,2792.3,2792.2,0.992]
[1749626249763,1.1867,2792.3,2792.2,0.992]
[1749626249966,10.63762934,2792.3,2792.2,0.992]
[1749626250162,10.63762934,2792.3,2792.1,9.264]
[1749626250163,11.18762934,2792.3,2792.1,9.264]
[1749626250367,11.18762934,2792.3,2792.2,0.992]
[1749626250617,12.67899227,2792.3,2792.1,9.264]
[1749626250766,12.67899227,2792.3,2792.2,0.992]
[1749626252275,12.12899227,2792.3,2792.2,0.992]
[1749626253008,12.67899227,2792.3,2792.2,1.32293398]
[1749626253217,12.67899227,2792.3,2792.2,0.992]
[1749626253518,12.67899227,2792.3,2792.2,1.32290795]
[1749626253672,12.67899227,2792.3,2792.2,0.992]
[1749626254224,15.95398522,2792.3,2792.2,0.992]
[1749626254521,4.00419295,2792.3,2792.2,0.992]
[1749626254725,4.00419295,2792.3,2792.2,1.32283614]
[1749626255011,4.00419295,2792.3,2792.2,0.992]
[1749626255509,4.00419295,2792.3,2792.2,1.32276834]
[1749626255710,4.00419295,2792.3,2792.2,0.992]
[1749626255914,5.34970518,2792.3,2792.1,9.264]
[1749626256220,5.34970518,2792.3,2792.2,1.32279916]
[1749626256408,5.34970518,2792.3,2792.2,0.992]
[1749626256789,5.34970518,2792.3,2792.2,1.32278938]
[1749626256996,6.41660518,2792.3,2792.1,9.264]
[1749626257325,11.01498986,2792.2,2792.1,9.264]
[1749626257505,11.01498986,2792.2,2792.1,10.256]
[1749626257709,11.01498986,2792.2,2792.1,10.58685639]
[1749626257904,14.83998281,2792.2,2792.1,10.58685383]
[1749626258108,4.83905347,2792.2,2792.1,10.256]
[1749626258308,3.82499295,2792.2,2792.1,10.256]
[1749626258922,3.82499295,2792.2,2792.1,20.256]
[1749626259129,0.1792,2792.3,2792.1,20.58653545]
[1749626259327,3.82499295,2792.5,2792.1,20.256]
[1749626259482,0.1792,2792.4,2792.1,20.256]
[1749626260315,0.1792,2792.4,2792.2,0.33050118]
[1749626260606,0.1792,2792.4,2792.1,20.256]
[1749626260937,0.1792,2792.4,2792.2,0.33040773]
[1749626261137,0.1792,2792.4,2792.3,0.33012761]
[1749626261303,0.1792,2792.4,2792.1,20.256]
[1749626261512,0.1792,2792.4,2792.2,0.33015229]
[1749626261739,0.1792,2792.4,2792.1,20.256]
[1749626262240,0.1792,2792.4,2792.2,0.33017618]
[1749626262449,0.1792,2792.4,2792.3,0.33017916]
[1749626263110,0.1792,2792.4,2792.3,0.33016115]
[1749626263311,0.1792,2792.4,2792.3,0.33012308]
[1749626263511,0.1792,2792.4,2792.2,0.992]
[1749626264314,0.1792,2792.4,2792.3,0.32997038]
[1749626264941,0.1792,2792.4,2792.3,0.32985344]
[1749626265136,0.1792,2792.4,2792.3,0.32986187]
[1749626265309,0.1792,2792.4,2792.3,0.988]
[1749626265941,0.1792,2792.4,2792.3,1.31770861]
[1749626266140,0.1792,2792.4,2792.3,1.31769822]
[1749626266635,0.1792,2792.4,2792.3,0.988]
[1749626267038,0.1792,2792.4,2792.3,1.31776216]
[1749626267245,0.1792,2792.4,2792.3,0.988]
[1749626267443,4.88899295,2793.1,2792.4,10.0]
[1749626267627,0.1792,2792.7,2792.5,0.32986459]
[1749626267832,0.1792,2792.7,2792.6,0.32986459]
[1749626268458,1.2526,2792.7,2792.6,1.31791981]
[1749626268658,2.32295293,2792.7,2792.6,0.32995886]
[1749626268822,2.32295293,2792.7,2792.6,0.988]
[1749626269676,0.1792,2792.7,2792.6,1.31795876]
[1749626269858,0.1792,2792.7,2792.6,1.3180969]
[1749626270161,0.1792,2792.7,2792.6,1.31809792]
[1749626270548,0.1792,2792.7,2792.6,1.3181441]
[1749626270714,0.1792,2792.7,2792.6,0.988]
[1749626271055,0.1792,2792.7,2792.6,1.31842888]
[1749626271357,0.1792,2792.7,2792.6,0.33056733]
[1749626271531,0.1792,2792.7,2792.6,1.31856733]
[1749626272346,0.1792,2792.7,2792.6,0.988]
[1749626272656,0.1792,2792.7,2792.6,1.31857464]
[1749626272862,0.1792,2792.7,2792.6,0.988]
[1749626273041,0.1792,2792.7,2792.6,1.31860565]
[1749626273553,0.1792,2792.7,2792.6,1.31957748]
[1749626274136,0.1792,2792.7,2792.6,0.988]
[1749626274346,0.1792,2792.7,2792.6,1.31969208]
[1749626274661,0.1792,2792.7,2792.6,0.988]
[1749626274818,0.1792,2792.7,2792.6,0.33168193]
[1749626275024,0.1792,2792.7,2792.6,1.31967833]
[1749626276010,0.1792,2792.7,2792.6,1.31966589]
[1749626276211,0.1792,2792.7,2792.6,0.988]
[1749626276961,0.1792,2792.7,2792.6,1.31973752]
[1749626277190,0.1792,2792.7,2792.6,1.31975503]
[1749626277991,4.00419295,2792.7,2792.6,0.988]
[1749626278675,4.00419295,2792.7,2792.6,1.31975988]
[1749626279308,3.82499295,2792.7,2792.6,1.31975988]
[1749626279613,3.82499295,2792.7,2792.6,0.988]
[1749626279963,3.82499295,2792.7,2792.6,1.31967046]
[1749626280207,3.82499295,2792.7,2792.6,0.988]
[1749626280511,3.82499295,2792.7,2792.6,1.31967159]
[1749626280713,4.22541225,2792.7,2792.6,1.31969532]
[1749626280895,5.45801225,2792.7,2792.6,0.33169532]
[1749626281276,5.45801225,2792.7,2792.6,1.31969532]
[1749626281468,5.45801225,2792.7,2792.6,0.988]
[1749626281701,5.97181225,2792.7,2792.6,0.988]
[1749626282070,1.0172,2792.5,2792.2,2.1203227]
[1749626282413,10.75102934,2792.3,2792.2,2.1203227]
[1749626282608,10.75102934,2792.3,2792.2,3.44029723]
[1749626283167,10.75102934,2792.3,2792.2,3.44010071]
[1749626283407,10.75102934,2792.3,2792.2,3.44014827]
[1749626283633,16.40532452,2792.3,2792.1,10.252]
[1749626283819,4.827,2792.2,2792.1,10.252]
[1749626286937,4.93599295,2792.2,2792.1,10.252]
[1749626288398,3.82499295,2792.2,2792.1,10.252]
[1749626291142,3.82499295,2792.2,2792.1,10.303]
[1749626291545,3.82499295,2792.2,2792.1,10.4822]
[1749626292802,3.82499295,2792.2,2792.1,20.4822]
[1749626293744,3.82499295,2792.2,2792.1,19.5231855]
[1749626293917,3.82499295,2792.2,2792.1,20.5111855]
[1749626294245,3.82499295,2792.2,2792.1,10.4671855]
[1749626295718,3.82499295,2792.4,2792.1,10.4671855]
[1749626296246,3.82499295,2792.4,2792.2,0.33104864]
[1749626296417,3.82499295,2792.4,2792.3,0.33104864]
[1749626296623,3.82499295,2792.4,2792.3,0.36003414]
[1749626296824,3.82499295,2792.4,2792.3,0.35993929]
[1749626297019,3.82499295,2792.4,2792.3,0.0289855]
[1749626297350,3.82499295,2792.4,2792.3,0.985]
[1749626298752,3.82499295,2792.4,2791.0,12.98480051]
[1749626298951,3.82499295,2792.3,2791.8,0.1792]
[1749626299252,0.1792,2792.2,2791.9,0.985]
[1749626299950,0.1792,2792.2,2791.9,10.985]
[1749626300319,4.00419295,2792.3,2791.9,10.985]
[1749626302671,4.00419295,2792.3,2791.8,3.8912]
[1749626302672,4.00419295,2792.3,2791.8,0.1792]
[1749626302833,0.1792,2792.1,2792.0,0.985]
[1749626303779,0.1792,2792.1,2790.8,13.53387117]
[1749626303780,4.00419295,2792.1,2790.8,13.53387117]
[1749626303977,4.00419295,2792.1,2790.4,5.1283519]
[1749626303978,13.27592229,2792.1,2790.9,4.692]
[1749626304134,0.1792,2791.8,2791.4,0.1792]
[1749626304454,0.1792,2791.8,2791.4,10.1792]
[1749626305128,0.1792,2791.8,2791.5,9.271]
[1749626307255,1.1332,2791.7,2791.6,0.985]
[1749626307628,9.63012934,2791.8,2791.6,0.985]
[1749626307629,0.1792,2791.8,2791.6,0.985]
[1749626307834,3.82499295,2792.1,2791.6,0.985]
[1749626308034,0.1792,2791.9,2791.6,0.985]
[1749626309650,0.1792,2791.9,2791.7,0.33095849]
[1749626309845,0.1792,2791.9,2791.6,0.985]
[1749626310252,0.1792,2791.9,2791.7,0.33104124]
[1749626310449,0.1792,2791.9,2791.8,0.33104124]
[1749626310635,0.1792,2791.9,2791.8,0.33108373]
[1749626310842,0.1792,2791.9,2791.6,0.985]
[1749626311082,0.1792,2791.9,2791.7,0.33107172]
[1749626311254,0.1792,2791.9,2791.8,0.3310715]
[1749626311448,0.1792,2791.9,2791.8,0.985]
[1749626313393,3.82499295,2792.1,2791.8,0.985]
[1749626313542,3.82499295,2792.1,2791.8,1.1642]
[1749626315048,10.02640089,2792.1,2791.8,1.1642]
[1749626315374,0.5796193,2792.0,2791.8,0.985]
[1749626315574,0.1792,2792.0,2791.8,0.985]
[1749626317281,9.47413933,2791.9,2791.7,9.272]
[1749626317487,9.47413933,2791.9,2791.8,0.985]
[1749626317853,9.65333933,2791.9,2791.8,0.985]
[1749626318266,11.11485256,2791.9,2791.8,0.985]
[1749626323251,1.64071323,2791.9,2791.8,0.985]
[1749626324375,1.64071323,2791.9,2791.3,0.1792]
[1749626324580,1.46151323,2791.9,2791.8,0.985]
[1749626325185,1.64071323,2791.9,2791.8,0.985]
[1749626325378,5.46570618,2791.9,2791.8,0.985]
[1749626325572,4.00419295,2791.9,2791.8,0.985]
[1749626328360,3.82499295,2791.9,2791.8,0.985]
[1749626328759,3.82499295,2791.9,2791.8,1.1642]
[1749626329895,3.82499295,2791.9,2791.8,11.1642]
[1749626330260,0.1792,2792.3,2791.8,11.1642]
[1749626332612,10.53243933,2792.7,2791.8,11.1642]
[1749626332613,10.53243933,2792.7,2791.8,10.985]
[1749626332912,0.1792,2792.4,2792.0,0.1792]
[1749626335375,6.38021804,2792.4,2792.0,0.1792]
[1749626338110,6.38021804,2792.4,2791.8,10.985]
[1749626338280,6.38021804,2792.4,2791.9,0.1792]
[1749626339434,6.20101804,2792.2,2791.9,0.1792]
[1749626339730,0.1792,2792.4,2792.0,0.973]
[1749626339731,0.9252518,2792.4,2792.0,0.973]
[1749626339933,1.0803,2792.5,2792.0,0.973]
[1749626339934,6.38021804,2792.1,2792.0,0.973]
[1749626340308,7.53211804,2792.1,2792.0,0.973]
[1749626340706,17.53211804,2792.1,2792.0,0.973]
[1749626341435,7.53211804,2792.1,2792.0,0.973]
[1749626341746,8.28532984,2792.1,2792.0,0.973]
[1749626342626,7.53211804,2792.1,2792.0,0.973]
[1749626347916,0.1792,2792.1,2792.0,0.973]
[1749626349026,6.38021804,2792.1,2792.0,0.973]
[1749626350133,0.1792,2792.1,2792.0,0.973]
[1749626350896,0.1792,2792.2,2792.0,0.973]
[1749626351811,0.1792,2792.2,2791.8,0.1792]
[1749626352023,0.1792,2792.2,2791.9,0.973]
[1749626352222,0.1792,2792.2,2791.9,1.0721]
[1749626353801,0.1792,2792.2,2792.0,0.0289855]
[1749626355335,0.1792,2792.2,2792.1,0.33141978]
[1749626355522,0.1792,2792.2,2792.0,0.0289855]
[1749626355705,0.1792,2792.2,2791.9,0.973]
[1749626356044,0.1792,2792.2,2792.1,0.0039358]
[1749626356251,0.1792,2792.2,2792.1,0.33535863]
[1749626356741,0.1792,2792.2,2792.1,0.0039358]
[1749626356898,0.1792,2792.2,2792.1,0.33538276]
[1749626357106,6.20101804,2792.5,2792.1,0.4344738]
[1749626357328,6.20101804,2792.5,2792.1,0.1030358]
[1749626357329,0.1792,2792.3,2792.1,0.1030358]
[1749626357550,0.1792,2792.3,2792.2,0.33141574]
[1749626357857,6.38021804,2792.3,2792.1,0.0991]
[1749626358016,6.38021804,2792.3,2792.2,0.33534604]
[1749626358418,7.01823984,2792.3,2792.2,0.33535496]
[1749626358608,7.01823984,2792.3,2792.2,0.33542114]
[1749626358826,7.01823984,2792.3,2792.2,0.00393566]
[1749626359238,7.01823984,2792.3,2792.2,0.33539031]
[1749626359551,7.01823984,2792.3,2792.2,0.00393566]
[1749626359754,8.19903984,2792.3,2792.2,0.33538862]
[1749626360457,8.19903984,2792.3,2792.2,0.33541177]
[1749626360615,8.19903984,2792.3,2792.2,0.00393566]
[1749626360815,8.19903984,2792.3,2792.2,0.33541498]
[1749626361014,8.19903984,2792.3,2792.2,0.00393566]
[1749626361359,1.1621,2792.2,2791.4,9.272]
[1749626361527,7.54231804,2791.5,2790.9,0.2783]
[1749626361861,6.20101804,2791.1,2791.0,0.3315748]
[1749626362065,6.20101804,2791.1,2791.0,0.3315801]
[1749626362369,6.20101804,2791.1,2791.0,0.33157933]
[1749626362577,6.20101804,2791.1,2791.0,0.33158641]
[1749626362859,6.20101804,2791.1,2791.0,0.3315746]
[1749626363022,6.20101804,2791.1,2790.9,0.2783]
[1749626363418,6.20101804,2791.1,2791.0,0.33157265]
[1749626363634,6.38021804,2791.1,2790.7,0.1792]
[1749626365163,6.38021804,2791.1,2790.8,10.24]
[1749626367036,0.36025657,2791.9,2790.8,10.24]
[1749626367037,6.38021804,2790.9,2790.8,10.24]
[1749626367956,0.1792,2790.9,2790.8,10.24]
[1749626368630,6.38021804,2790.9,2790.8,9.273]
[1749626368825,0.1792,2790.9,2790.8,10.24]
[1749626372292,0.1792,2791.0,2790.8,10.24]
[1749626372466,6.20101804,2791.5,2790.8,10.24]
[1749626372797,0.1792,2791.3,2790.9,0.1792]
[1749626375894,6.20101804,2791.5,2791.0,0.33041707]
[1749626376090,0.1792,2791.4,2791.1,1.29732564]
[1749626376255,0.1792,2791.4,2791.2,0.33032564]
[1749626376455,0.1792,2791.4,2791.3,0.33048809]
[1749626376456,1.3636,2791.4,2791.3,0.33048809]
[1749626376756,0.1792,2791.4,2791.1,0.967]
[1749626376955,0.1792,2791.6,2791.2,0.50963755]
[1749626377150,0.1792,2791.7,2791.2,0.1792]
[1749626377474,0.1792,2791.7,2791.3,0.33042847]
[1749626377674,0.1792,2791.7,2791.4,0.33042847]
[1749626378001,0.1792,2791.7,2791.5,0.33040149]
[1749626378154,0.1792,2791.7,2791.6,0.33029756]
[1749626378487,0.1792,2791.7,2791.2,0.1792]
[1749626378889,6.20101804,2792.2,2791.6,0.1792]
[1749626379091,0.1792,2792.0,2791.6,0.1792]
[1749626379398,6.20101804,2792.2,2791.6,0.1792]
[1749626379595,0.1792,2792.1,2791.7,0.3302208]
[1749626379789,0.1792,2792.1,2791.8,0.3302208]
[1749626379990,0.1792,2792.1,2791.9,0.967]
[1749626381111,6.20101804,2792.4,2792.0,0.33025046]
[1749626381320,0.1792,2792.3,2792.1,0.33025046]
[1749626381491,0.1792,2792.3,2792.2,0.33022542]
[1749626381674,10.0,2793.2,2791.9,1.1462]
[1749626381675,7.34281804,2792.8,2791.9,0.967]
[1749626381876,0.1792,2792.5,2792.1,0.1792]
[1749626382078,0.1792,2792.5,2792.2,0.33017691]
[1749626382278,6.20101804,2792.8,2792.3,0.33016733]
[1749626382493,0.1792,2792.6,2792.4,0.33016733]
[1749626382695,6.38021804,2792.6,2792.5,0.967]
[1749626383012,6.38021804,2792.6,2792.5,1.29717282]
[1749626383179,7.57121804,2792.6,2792.5,0.967]
[1749626383381,8.32833984,2792.6,2792.5,1.29720515]
[1749626383677,8.32833984,2792.6,2792.5,1.29722845]
[1749626383881,8.32833984,2792.6,2792.5,0.967]
[1749626384190,8.32833984,2792.6,2792.5,1.29725826]
[1749626384395,7.57121804,2792.6,2792.5,1.29725826]
[1749626384591,7.57121804,2792.6,2792.5,0.967]
[1749626384794,7.57121804,2792.6,2792.5,1.29718452]
[1749626385113,7.57121804,2792.6,2792.5,1.29719143]
[1749626385295,7.57121804,2792.6,2792.5,0.967]
[1749626385811,7.57121804,2792.6,2792.5,1.29718374]
[1749626386485,6.38021804,2792.6,2792.5,1.29698381]
[1749626386816,6.38021804,2792.6,2792.5,0.32995451]
[1749626387118,7.12943984,2792.6,2792.5,0.967]
[1749626387415,7.12943984,2792.6,2792.5,1.29696385]
[1749626387592,7.12943984,2792.6,2792.5,1.30396385]
[1749626387593,8.22603984,2792.6,2792.5,1.30396385]
[1749626388185,8.22603984,2792.6,2792.5,0.974]